lending/lending_fUSD_20250808
["ID","MTS","AMOUNT","RATE_DAILY","PERIOD"]
[377967727,1754633467136,-511.24,0.00019702,2]
[377967728,1754633467146,-400.0,0.00019702,2]
[377967729,1754633467158,-664.37,0.00019702,2]
[377967730,1754633467167,-400.0,0.00019702,2]
[377967731,1754633467177,-400.0,0.00019702,2]
[377967732,1754633467189,-456.68,0.00019702,2]
[377967733,1754633467199,-400.0,0.00019702,2]
[377967734,1754633467208,-400.0,0.00019702,2]
[377967735,1754633467217,-472.42,0.00019702,2]
[377967736,1754633467227,-400.0,0.00019702,2]
[377967737,1754633467236,-400.0,0.00019702,2]
[377967738,1754633467245,-400.0,0.00019702,2]
[377967739,1754633467255,-400.0,0.00019702,2]
[377967740,1754633467264,-664.87,0.00019702,2]
[377967741,1754633467273,-543.08,0.00019702,2]
[377967742,1754633467283,-400.0,0.00019702,2]
[377967743,1754633467293,-457.82,0.00019702,2]
[377967744,1754633467303,-580.38,0.00019702,2]
[377967745,1754633467313,-400.0,0.00019702,2]
[377967746,1754633467323,-400.0,0.00019702,2]
[377967747,1754633467333,-400.0,0.00019702,2]
[377967748,1754633467342,-728.86,0.00019702,2]
[377967749,1754633467353,-400.0,0.00019702,2]
[377967750,1754633467363,-577.74,0.00019702,2]
[377967751,1754633467372,-400.0,0.00019702,2]
[377967752,1754633467382,-400.0,0.00019702,2]
[377967753,1754633467391,-536.47,0.00019702,2]
[377967754,1754633467401,-691.39,0.00019702,2]
[377967755,1754633467411,-454.51,0.00019702,2]
[377967756,1754633467420,-480.98,0.00019702,2]
[377967757,1754633467430,-400.0,0.00019702,2]
[377967758,1754633467440,-400.0,0.00019702,2]
[377967759,1754633467449,-423.62,0.00019702,2]
[377967760,1754633467459,-752.68,0.00019702,2]
[377967761,1754633467468,-400.0,0.00019702,2]
[377967762,1754633467477,-400.0,0.00019702,2]
[377967763,1754633467487,-949.75,0.00019702,2]
[377967764,1754633467497,-294.32997927,0.00019702,2]
[377967765,1754633467506,-369.09480311,0.00019702,2]
[377967766,1754633467516,-400.0,0.00019702,2]
[377967767,1754633467525,-920.53,0.00019702,2]
[377967768,1754633467535,-773.95,0.00019702,2]
[377967769,1754633467545,-400.0,0.00019702,2]
[377967770,1754633467555,-928.26,0.00019702,2]
[377967771,1754633467565,-400.0,0.00019702,2]
[377967772,1754633467574,-926.63,0.00019702,2]
[377967773,1754633467584,-400.0,0.00019702,2]
[377967774,1754633467594,-720.67,0.00019702,2]
[377967775,1754633467604,-517.72,0.00019702,2]
[377967776,1754633467613,-629.09,0.00019702,2]
[377967777,1754633467622,-861.26,0.00019702,2]
[377967778,1754633467633,-613.14,0.00019702,2]
[377967779,1754633467642,-400.0,0.00019702,2]
[377967780,1754633467652,-660.5,0.00019702,2]
[377967781,1754633467661,-481.87,0.00019702,2]
[377967782,1754633467671,-400.0,0.00019702,2]
[377967783,1754633467680,-776.09,0.00019702,2]
[377967784,1754633467690,-400.0,0.00019702,2]
[377967785,1754633467700,-733.88,0.00019702,2]
[377967786,1754633467709,-400.0,0.00019702,2]
[377967787,1754633467719,-489.85,0.00019702,2]
[377967788,1754633467729,-400.0,0.00019702,2]
[377967789,1754633467738,-400.0,0.00019702,2]
[377967790,1754633467748,-400.0,0.00019702,2]
[377967791,1754633467757,-400.0,0.00019702,2]
[377967792,1754633467767,-400.0,0.00019702,2]
[377967793,1754633467776,-400.0,0.00019702,2]
[377967794,1754633467786,-400.0,0.00019702,2]
[377967795,1754633467796,-400.0,0.00019702,2]
[377967796,1754633467806,-614.85,0.00019702,2]
[377967797,1754633467816,-400.0,0.00019702,2]
[377967798,1754633467826,-699.94,0.00019702,2]
[377967799,1754633467836,-400.0,0.00019702,2]
[377967800,1754633467845,-805.92,0.00019702,2]
[377967801,1754633467855,-410.91,0.00019702,2]
[377967802,1754633467865,-400.0,0.00019702,2]
[377967803,1754633467874,-505.9,0.00019702,2]
[377967804,1754633467884,-400.0,0.00019702,2]
[377967805,1754633467893,-692.53,0.00019702,2]
[377967806,1754633467903,-400.0,0.00019702,2]
[377967807,1754633467912,-319.0539842,0.00019702,2]
[377967808,1754633469778,-189.0,0.000185,2]
[377967809,1754633469788,-400.0,0.0001888,2]
[377967810,1754633469798,-400.0,0.00018881,2]
[377967811,1754633469808,-1207.26,0.00018999,2]
[377967812,1754633469818,-400.0,0.00019154,2]
[377967813,1754633469827,-400.0,0.00019155,2]
[377967814,1754633469837,-48.91562463,0.00019273,2]
[377967815,1754633469867,-339.57505197,0.00019273,2]
[377967816,1754633469952,-818.7693234,0.00019273,2]
[377967817,1754633469962,-179.89,0.00019303,2]
[377967818,1754633469971,-400.0,0.00019428,2]
[377967819,1754633469980,-208.97990172,0.00019429,2]
[377967820,1754633469991,-191.02009828,0.00019429,2]
[377967821,1754633470002,-1080.03211067,0.00019547,2]
[377967822,1754633470094,-277.79398,0.00018068,2]
[377967823,1754633470104,-127.22788933,0.00019547,2]
[377967824,1754633470113,-185.0,0.0001968,2]
[377967825,1754633470122,-80.9460158,0.00019702,2]
[377967826,1754633470131,-166.90349115,0.00019702,2]
[377967827,1754633515423,-234.77206297,0.00018068,2]
[377967835,1754633690018,309.22,0.00015068,2]
[377967836,1754633690258,309.22,0.00016667,2]
[377967840,1754633727052,200.0,0.00017984,2]
[377967842,1754633773165,159.51,0.00017994,2]
[377967845,1754633896905,610.0,0.00017461,2]
[377967846,1754633905500,161.05499691,0.00017991,2]
[377967847,1754633908421,250.91,0.00017461,2]
[377967848,1754633910012,250.91,0.00026191,120]
[377967850,1754633976367,203.0,0.000175,2]
[377967851,1754634035631,549.94,0.00027397,120]
[377967852,1754634045876,500.0,0.00017068,2]
[377967853,1754634126106,666.0,0.00017465,3]
[377967862,1754634276811,177.09,0.00017427,2]
[377967863,1754634283099,27667.95959491,0.00017427,2]
[377967864,1754634283127,12409.18040509,0.00017427,2]
[377967865,1754634289151,175.0,0.00017426,7]
[377967866,1754634380340,152.97,0.00017438,2]
[377967867,1754634428623,250.0,0.00017417,2]
[377967868,1754634429512,-159.51,0.00018008,2]
[377967869,1754634429536,-43.64073741,0.00018008,2]
[377967871,1754634436229,-122.84528488,0.00018008,2]
[377967872,1754634436254,-159.51,0.00018022,2]
[377967873,1754634436278,-19.76166827,0.00018036,2]
[377967874,1754634438603,-139.74833173,0.00018036,2]
[377967875,1754634438630,-57.26534197,0.0001805,2]
[377967876,1754634441701,-102.24465803,0.0001805,2]
[377967877,1754634441726,-119.53559819,0.00018063,2]
[377967880,1754634510720,199.0,0.000165,2]
[377967881,1754634511084,195.0,0.0001768,2]
[377967885,1754634526349,490.33477457,0.0001,2]
[377967886,1754634526389,1749.77613141,0.0001,2]
[377967895,1754634572536,277.47,0.00013699,2]
[377967898,1754634596568,170.93,0.00017552,2]
[377967912,1754634632357,-39.97440181,0.00018063,2]
[377967913,1754634632368,-250.0,0.0001807,2]
[377967914,1754634632378,-159.51,0.00018077,2]
[377967915,1754634632388,-159.51,0.00018091,2]
[377967916,1754634632398,-267.46074303,0.00018094,2]
[377967917,1754634632408,-500.0,0.00018095,2]
[377967918,1754634632417,-151.0,0.00018095,2]
[377967919,1754634632427,-7.71749583,0.00018095,2]
[377967920,1754634632439,-152.28250417,0.00018095,2]
[377967921,1754634632448,-153.41574088,0.00018095,2]
[377967922,1754634632535,-46.58425912,0.00018095,2]
[377967923,1754634632545,-196.99977261,0.00018095,2]
[377967924,1754634632556,-1200.0,0.00018104,2]
[377967925,1754634632566,-159.51,0.00018105,2]
[377967926,1754634632576,-12035.31658232,0.00018106,2]
[377967927,1754634632588,-9235.38322632,0.00018106,2]
[377967940,1754634638167,-262.96351895,0.00018106,2]
[377967941,1754634638179,-1551.96145378,0.00018106,2]
[377967942,1754634638285,-814.37521863,0.00018106,2]
[377967943,1754634638295,-159.51,0.00018119,2]
[377967944,1754634638305,-159.51,0.00018133,2]
[377967945,1754634638315,-159.51,0.00018146,2]
[377967946,1754634638324,-159.51,0.0001816,2]
[377967947,1754634638333,-1000.0,0.00018167,2]
[377967948,1754634638343,-159.51,0.00018174,2]
[377967949,1754634638353,-309.22,0.00018266,2]
[377967950,1754634638362,-642.48,0.000183,2]
[377967951,1754634638371,-152.97,0.00018309,2]
[377967952,1754634638381,-1436.68913633,0.00018554,2]
[377967953,1754634638391,-151.0,0.00018643,2]
[377967954,1754634638402,-568.0,0.0001868,2]
[377967955,1754634638412,-155.36964723,0.00018681,2]
[377967956,1754634638422,-275.1056,0.00018681,2]
[377967957,1754634638432,-2071.0684,0.00018681,2]
[377967958,1754634638442,-613.122,0.00018681,2]
[377967959,1754634638451,-230.4702,0.00018681,2]
[377967960,1754634638460,-237.2254,0.00018681,2]
[377967961,1754634638470,-2500.0,0.00018681,2]
[377967962,1754634638479,-500.0,0.00018699,2]
[377967963,1754634638489,-501.94751737,0.00018699,2]
[377967964,1754634638498,-500.0,0.00018699,2]
[377967965,1754634638508,-365.2521704,0.00018699,2]
[377967966,1754634638517,-500.0,0.00018699,2]
[377967967,1754634638526,-500.0,0.00018699,2]
[377967968,1754634638535,-500.0,0.00018699,2]
[377967969,1754634638544,-500.0,0.00018699,2]
[377967970,1754634638554,-500.0,0.00018699,2]
[377967971,1754634638563,-500.0,0.00018699,2]
[377967972,1754634638572,-500.0,0.00018699,2]
[377967973,1754634638582,-500.0,0.00018699,2]
[377967974,1754634638591,-500.0,0.00018699,2]
[377967975,1754634638601,-500.0,0.00018699,2]
[377967976,1754634638610,-500.0,0.00018699,2]
[377967977,1754634638619,-500.0,0.00018699,2]
[377967978,1754634638628,-500.0,0.00018699,2]
[377967979,1754634638638,-500.0,0.00018699,2]
[377967980,1754634638648,-500.0,0.00018699,2]
[377967981,1754634638657,-500.0,0.00018699,2]
[377967982,1754634638666,-500.0,0.00018699,2]
[377967983,1754634638676,-461.93567765,0.00018699,2]
[377967984,1754634638689,-500.0,0.00018699,2]
[377967985,1754634638698,-500.0,0.00018699,2]
[377967986,1754634638707,-500.0,0.00018699,2]
[377967987,1754634638717,-500.0,0.00018699,2]
[377967988,1754634638726,-500.0,0.00018699,2]
[377967989,1754634638736,-500.0,0.00018699,2]
[377967991,1754634638746,-500.0,0.00018699,2]
[377967993,1754634638755,-500.0,0.00018699,2]
[377967995,1754634638765,-500.0,0.00018699,2]
[377967997,1754634638775,-500.0,0.00018699,2]
[377967999,1754634638784,-1000.0,0.000187,2]
[377968001,1754634638794,-1000.0,0.000187,2]
[377968003,1754634638803,-1000.0,0.000187,2]
[377968005,1754634638813,-1000.0,0.000187,2]
[377968007,1754634638823,-1081.0,0.000187,2]
[377968009,1754634638833,-1000.0,0.000187,3]
[377968011,1754634638842,-1000.0,0.000187,3]
[377968013,1754634638852,-19887.03652308,0.000187,2]
[377968015,1754634638862,-1000.0,0.000187,2]
[377968017,1754634638871,-1000.0,0.000187,2]
[377968019,1754634638881,-1000.0,0.000187,2]
[377968021,1754634638890,-600.0,0.00018718,2]
[377968023,1754634638899,-250.0,0.00018721,2]
[377968025,1754634638908,-165.81437329,0.00018778,2]
[377968027,1754634638917,-5000.0,0.00018779,2]
[377968029,1754634638926,-180.06527695,0.00018779,2]
[377968031,1754634638935,-315.32137497,0.00018779,2]
[377968033,1754634638944,-568.5215,0.0001878,2]
[377968035,1754634638954,-1000.0,0.0001878,2]
[377968037,1754634638963,-730.64,0.0001878,2]
[377968039,1754634638972,-400.0,0.0001878,2]
[377968041,1754634638981,-400.0,0.0001878,2]
[377968043,1754634638990,-432.5,0.0001878,2]
[377968045,1754634638999,-400.0,0.0001878,2]
[377968047,1754634639008,-400.0,0.0001878,2]
[377968049,1754634639018,-400.0,0.0001878,2]
[377968051,1754634639027,-742.12,0.0001878,2]
[377968053,1754634639036,-400.0,0.0001878,2]
[377968055,1754634639045,-400.0,0.0001878,2]
[377968057,1754634639055,-608.81,0.0001878,2]
[377968059,1754634639065,-400.0,0.0001878,2]
[377968061,1754634639075,-447.33,0.0001878,2]
[377968063,1754634639085,-507.84,0.0001878,2]
[377968065,1754634639094,-400.0,0.0001878,2]
[377968067,1754634639104,-400.0,0.0001878,2]
[377968069,1754634639113,-400.0,0.0001878,2]
[377968071,1754634639123,-602.7,0.0001878,2]
[377968073,1754634639132,-413.37,0.0001878,2]
[377968075,1754634639142,-400.0,0.0001878,2]
[377968077,1754634639151,-628.49,0.0001878,2]
[377968078,1754634639160,-689.41,0.0001878,2]
[377968079,1754634639169,-400.0,0.0001878,2]
[377968080,1754634639179,-400.0,0.0001878,2]
[377968081,1754634639188,-627.86,0.0001878,2]
[377968082,1754634639198,-866.3,0.0001878,2]
[377968083,1754634639207,-453.01,0.0001878,2]
[377968084,1754634639216,-831.03,0.0001878,2]
[377968085,1754634639225,-191.00601567,0.0001878,2]
[377968086,1754634639235,-536.5,0.0001878,2]
[377968087,1754634639244,-400.0,0.0001878,2]
[377968088,1754634639253,-812.22,0.0001878,2]
[377968089,1754634639263,-591.35,0.0001878,2]
[377968090,1754634639273,-400.0,0.0001878,2]
[377968091,1754634639282,-642.15,0.0001878,2]
[377968092,1754634639292,-577.94,0.0001878,2]
[377968093,1754634639301,-921.74,0.0001878,2]
[377968094,1754634639310,-400.0,0.0001878,2]
[377968095,1754634639320,-400.0,0.0001878,2]
[377968096,1754634639329,-705.18,0.0001878,2]
[377968097,1754634639338,-400.0,0.0001878,2]
[377968098,1754634639347,-605.97,0.0001878,2]
[377968099,1754634639356,-400.0,0.0001878,2]
[377968100,1754634639366,-400.0,0.0001878,2]
[377968101,1754634639375,-426.99,0.0001878,2]
[377968102,1754634639383,-872.34,0.0001878,2]
[377968103,1754634639392,-470.43,0.0001878,2]
[377968104,1754634639402,-400.0,0.0001878,2]
[377968105,1754634639411,-591.1,0.0001878,2]
[377968106,1754634639420,-690.45,0.0001878,2]
[377968107,1754634639429,-1237.5,0.0001878,2]
[377968108,1754634639438,-584.43,0.0001878,2]
[377968109,1754634639447,-826.74,0.0001878,2]
[377968110,1754634639456,-400.0,0.0001878,2]
[377968111,1754634639465,-741.37,0.0001878,2]
[377968112,1754634639474,-613.89,0.0001878,2]
[377968113,1754634639483,-400.0,0.0001878,2]
[377968114,1754634639492,-643.2,0.0001878,2]
[377968115,1754634639502,-547.59,0.0001878,2]
[377968116,1754634639511,-652.47,0.0001878,2]
[377968117,1754634639519,-604.79,0.0001878,2]
[377968118,1754634639528,-1054.69,0.0001878,2]
[377968119,1754634639537,-720.07,0.0001878,2]
[377968120,1754634639547,-896.64,0.0001878,2]
[377968121,1754634639556,-828.24,0.0001878,2]
[377968122,1754634639567,-400.0,0.0001878,2]
[377968123,1754634639577,-400.0,0.0001878,2]
[377968124,1754634639587,-400.0,0.0001878,2]
[377968125,1754634639597,-707.51,0.0001878,2]
[377968126,1754634639606,-1255.58,0.0001878,2]
[377968127,1754634639616,-400.0,0.0001878,2]
[377968128,1754634639625,-583.79,0.0001878,2]
[377968129,1754634639635,-958.19,0.0001878,2]
[377968130,1754634639644,-400.0,0.0001878,2]
[377968131,1754634639654,-1076.87,0.0001878,2]
[377968132,1754634639664,-1669.37,0.0001878,2]
[377968133,1754634639673,-400.0,0.0001878,2]
[377968134,1754634639686,-1132.56,0.0001878,2]
[377968135,1754634639695,-720.97,0.0001878,2]
[377968136,1754634639705,-1773.7,0.0001878,2]
[377968137,1754634639715,-729.99,0.0001878,2]
[377968138,1754634639724,-583.49,0.0001878,2]
[377968139,1754634639735,-663.89,0.0001878,2]
[377968140,1754634639745,-400.0,0.0001878,2]
[377968141,1754634639755,-604.37,0.0001878,2]
[377968142,1754634639768,-400.0,0.0001878,2]
[377968143,1754634639779,-430.79,0.0001878,2]
[377968144,1754634639789,-400.0,0.0001878,2]
[377968145,1754634639799,-400.0,0.0001878,2]
[377968146,1754634639809,-504.11,0.0001878,2]
[377968147,1754634639819,-997.35,0.0001878,2]
[377968148,1754634639829,-979.88,0.0001878,2]
[377968149,1754634639838,-689.28,0.0001878,2]
[377968150,1754634639848,-592.39,0.0001878,2]
[377968151,1754634639858,-786.91,0.0001878,2]
[377968152,1754634639868,-400.0,0.0001878,2]
[377968153,1754634639877,-672.66,0.0001878,2]
[377968154,1754634639887,-400.0,0.0001878,2]
[377968155,1754634639896,-384.808056,0.0001878,2]
[377968156,1754634639906,-400.0,0.0001878,2]
[377968157,1754634639916,-400.60864842,0.0001878,2]
[377968158,1754634639926,-645.52,0.0001878,2]
[377968159,1754634639936,-1239.93,0.0001878,2]
[377968160,1754634639945,-1341.73,0.0001878,2]
[377968161,1754634639955,-457.30254,0.0001878,2]
[377968162,1754634639965,-647.87,0.0001878,2]
[377968163,1754634639974,-675.79,0.0001878,2]
[377968164,1754634639984,-945.85,0.0001878,2]
[377968165,1754634639994,-1367.44,0.0001878,2]
[377968166,1754634640003,-852.85,0.0001878,2]
[377968167,1754634640013,-1035.66,0.0001878,2]
[377968168,1754634640023,-1814.41,0.0001878,2]
[377968169,1754634640032,-1289.05,0.0001878,2]
[377968170,1754634640042,-629.25,0.0001878,2]
[377968171,1754634640051,-881.49,0.0001878,2]
[377968172,1754634640062,-440.53,0.0001878,2]
[377968173,1754634640072,-666.71,0.0001878,2]
[377968174,1754634640082,-733.08,0.0001878,2]
[377968175,1754634640091,-400.0,0.0001878,2]
[377968176,1754634640101,-411.62,0.0001878,2]
[377968177,1754634640111,-916.72,0.0001878,2]
[377968178,1754634640120,-892.23,0.0001878,2]
[377968179,1754634640130,-1319.68,0.0001878,2]
[377968180,1754634640140,-400.0,0.0001878,2]
[377968181,1754634640150,-553.16,0.0001878,2]
[377968182,1754634640159,-400.0,0.0001878,2]
[377968183,1754634640169,-689.86,0.0001878,2]
[377968184,1754634640178,-1046.72,0.0001878,2]
[377968185,1754634640188,-400.0,0.0001878,2]
[377968186,1754634640197,-400.0,0.0001878,2]
[377968187,1754634640207,-1181.39,0.0001878,2]
[377968188,1754634640217,-1679.4,0.0001878,2]
[377968189,1754634640227,-819.86,0.0001878,2]
[377968190,1754634640236,-643.44,0.0001878,2]
[377968191,1754634640246,-983.42,0.0001878,2]
[377968192,1754634640256,-411.31,0.0001878,2]
[377968193,1754634640266,-400.0,0.0001878,2]
[377968194,1754634640275,-690.96,0.0001878,2]
[377968195,1754634640285,-400.0,0.0001878,2]
[377968196,1754634640295,-695.05,0.0001878,2]
[377968197,1754634640305,-1155.77,0.0001878,2]
[377968198,1754634640315,-517.76,0.0001878,2]
[377968199,1754634640326,-463.38,0.0001878,2]
[377968200,1754634640335,-872.66,0.0001878,2]
[377968201,1754634640345,-400.0,0.0001878,2]
[377968202,1754634640355,-400.0,0.0001878,2]
[377968203,1754634640365,-1991.54,0.0001878,2]
[377968204,1754634640375,-400.0,0.0001878,2]
[377968205,1754634640385,-400.0,0.0001878,2]
[377968206,1754634640394,-400.0,0.0001878,2]
[377968207,1754634640404,-1679.04,0.0001878,2]
[377968208,1754634640413,-977.26,0.0001878,2]
[377968209,1754634640422,-400.0,0.0001878,2]
[377968210,1754634640432,-821.62,0.0001878,2]
[377968211,1754634640442,-400.0,0.0001878,2]
[377968212,1754634640451,-433.88,0.0001878,2]
[377968213,1754634640460,-400.0,0.0001878,2]
[377968214,1754634640471,-1182.05,0.0001878,2]
[377968215,1754634640481,-656.58,0.0001878,2]
[377968216,1754634640491,-1080.73,0.0001878,2]
[377968217,1754634640501,-443.03,0.0001878,2]
[377968218,1754634640511,-400.0,0.0001878,2]
[377968219,1754634640520,-400.0,0.0001878,2]
[377968220,1754634640530,-477.71,0.0001878,2]
[377968221,1754634640540,-400.0,0.0001878,2]
[377968222,1754634640550,-400.0,0.0001878,2]
[377968223,1754634640560,-572.22,0.0001878,2]
[377968224,1754634640571,-839.42,0.0001878,2]
[377968225,1754634640582,-1455.9,0.0001878,2]
[377968226,1754634640592,-956.48,0.0001878,2]
[377968227,1754634640602,-638.61,0.0001878,2]
[377968228,1754634640612,-486.64,0.0001878,2]
[377968229,1754634640623,-5408.59,0.0001878,2]
[377968230,1754634640633,-400.0,0.0001878,2]
[377968231,1754634640643,-400.0,0.0001878,2]
[377968232,1754634640653,-400.0,0.0001878,2]
[377968233,1754634640663,-2385.86,0.0001878,2]
[377968235,1754634640672,-1263.41,0.0001878,2]
[377968237,1754634640684,-189696.1248,0.00018781,2]
[377968239,1754634640694,-3204.16386354,0.00018815,2]
[377968241,1754634640704,-641.14396387,0.0001886,2]
[377968243,1754634640713,-191.0,0.0001887,2]
[377968245,1754634640723,-500.0,0.00018873,2]
[377968247,1754634640732,-500.0,0.00018873,2]
[377968249,1754634640742,-500.0,0.00018873,2]
[377968251,1754634640752,-624.65,0.00018877,2]
[377968253,1754634640763,-400.0,0.00018877,2]
[377968256,1754634640773,-400.0,0.00018877,2]
[377968258,1754634640783,-400.0,0.00018877,2]
[377968261,1754634640793,-400.0,0.00018877,2]
[377968263,1754634640803,-536.07614214,0.00018877,2]
[377968265,1754634640813,-400.0,0.00018877,2]
[377968267,1754634640824,-751.67,0.00018877,2]
[377968269,1754634640834,-400.0,0.00018877,2]
[377968271,1754634640844,-400.0,0.00018877,2]
[377968273,1754634640854,-684.86,0.00018877,2]
[377968275,1754634640864,-848.05,0.00018877,2]
[377968277,1754634640873,-1040.86,0.00018877,2]
[377968279,1754634640883,-537.86,0.00018877,2]
[377968281,1754634640894,-737.31,0.00018877,2]
[377968283,1754634640905,-1466.64,0.00018877,2]
[377968285,1754634640915,-734.43,0.00018877,2]
[377968287,1754634640925,-694.24,0.00018877,2]
[377968290,1754634640935,-690.65,0.00018877,2]
[377968292,1754634640945,-1677.01,0.00018877,2]
[377968294,1754634640955,-1289.44,0.00018877,2]
[377968296,1754634640965,-1708.85,0.00018877,2]
[377968298,1754634640975,-4278.02,0.00018877,2]
[377968300,1754634640985,-684.81,0.00018877,2]
[377968302,1754634640994,-400.0,0.00018877,2]
[377968304,1754634641004,-815.62,0.00018877,2]
[377968306,1754634641014,-463.51,0.00018877,2]
[377968308,1754634641024,-400.0,0.00018877,2]
[377968310,1754634641034,-400.0,0.00018877,2]
[377968312,1754634641044,-422.22,0.00018877,2]
[377968315,1754634641056,-985.75,0.00018877,2]
[377968317,1754634641068,-1438.85,0.00018877,2]
[377968319,1754634641078,-400.0,0.00018877,2]
[377968321,1754634641087,-557.38,0.00018877,2]
[377968323,1754634641097,-1846.17,0.00018877,2]
[377968325,1754634641107,-701.24,0.00018877,2]
[377968327,1754634641118,-400.0,0.00018878,2]
[377968329,1754634641128,-400.0,0.00018878,2]
[377968331,1754634641138,-529.45,0.00018878,2]
[377968333,1754634641148,-548.3,0.00018878,2]
[377968335,1754634641157,-400.0,0.00018878,2]
[377968337,1754634641167,-400.0,0.00018878,2]
[377968339,1754634641177,-400.0,0.00018878,2]
[377968341,1754634641187,-400.0,0.00018878,2]
[377968343,1754634641198,-400.0,0.00018878,2]
[377968345,1754634641208,-400.0,0.00018878,2]
[377968347,1754634641218,-400.0,0.00018878,2]
[377968349,1754634641227,-400.0,0.00018878,2]
[377968351,1754634641236,-400.0,0.00018878,2]
[377968353,1754634641246,-581.32,0.00018878,2]
[377968355,1754634641256,-400.0,0.00018878,2]
[377968357,1754634641266,-400.0,0.00018878,2]
[377968359,1754634641275,-400.0,0.00018878,2]
[377968361,1754634641285,-956.15,0.00018878,2]
[377968363,1754634641294,-400.0,0.00018878,2]
[377968365,1754634641304,-400.0,0.00018878,2]
[377968367,1754634641314,-475.2,0.00018878,2]
[377968369,1754634641324,-400.0,0.00018878,2]
[377968371,1754634641334,-400.59,0.00018878,2]
[377968374,1754634641343,-400.0,0.00018878,2]
[377968376,1754634641354,-480.84,0.00018878,2]
[377968378,1754634641365,-400.0,0.00018878,2]
[377968380,1754634641374,-400.0,0.00018878,2]
[377968382,1754634641384,-545.12,0.00018878,2]
[377968384,1754634641393,-400.0,0.00018878,2]
[377968386,1754634641403,-400.0,0.00018878,2]
[377968388,1754634641413,-469.41,0.00018878,2]
[377968390,1754634641422,-420.86,0.00018878,2]
[377968392,1754634641432,-400.0,0.00018878,2]
[377968394,1754634641441,-400.0,0.00018878,2]
[377968396,1754634641451,-400.0,0.00018878,2]
[377968398,1754634641460,-675.26,0.00018878,2]
[377968400,1754634641470,-630.59,0.00018878,2]
[377968402,1754634641480,-400.0,0.00018878,2]
[377968404,1754634641490,-369.09480311,0.00018878,2]
[377968406,1754634641501,-294.32997927,0.00018878,2]
[377968408,1754634641511,-400.0,0.00018878,2]
[377968410,1754634641521,-414.9,0.00018878,2]
[377968412,1754634641531,-400.0,0.00018878,2]
[377968415,1754634641541,-400.0,0.00018878,2]
[377968417,1754634641551,-810.81,0.00018878,2]
[377968419,1754634641560,-400.0,0.00018878,2]
[377968421,1754634641571,-400.0,0.00018878,2]
[377968422,1754634641580,-753.6,0.00018878,2]
[377968423,1754634641589,-400.0,0.00018878,2]
[377968424,1754634641599,-421.64,0.00018878,2]
[377968425,1754634641610,-400.0,0.00018878,2]
[377968426,1754634641620,-612.44,0.00018878,2]
[377968427,1754634641630,-400.0,0.00018878,2]
[377968428,1754634641640,-428.62,0.00018878,2]
[377968429,1754634641650,-490.69,0.00018878,2]
[377968430,1754634641660,-400.0,0.00018878,2]